bitfinex/quotes_BTCUSD_20250303
["timestamp","ask_amount","ask_price","bid_price","bid_amount"]
[1741011528169,0.31371443,93586.0,93585.0,0.11171078]
[1741011528628,0.33363617,93586.0,93585.0,0.11171078]
[1741011529882,0.47099443,93586.0,93585.0,0.11171078]
[1741011530503,0.48775519,93586.0,93585.0,0.11171078]
[1741011530709,0.48875519,93586.0,93585.0,0.11171078]
[1741011531217,0.48775519,93586.0,93585.0,0.11171078]
[1741011532201,0.50778647,93586.0,93585.0,0.03237038]
[1741011532426,0.50778647,93586.0,93585.0,0.11171078]
[1741011533222,0.50782647,93586.0,93585.0,0.11171078]
[1741011533838,0.34754647,93586.0,93585.0,0.11171078]
[1741011534489,0.50782647,93586.0,93585.0,0.11171078]
[1741011535210,0.50782647,93586.0,93585.0,0.00027308]
[1741011535890,0.49106571,93586.0,93585.0,0.00027308]
[1741011536272,0.47103443,93586.0,93585.0,0.00027308]
[1741011536865,0.77203443,93586.0,93585.0,0.00027308]
[1741011537390,0.160292,93579.0,93578.0,0.0001707]
[1741011537774,0.16800408,93579.0,93578.0,0.0001707]
[1741011539185,0.18476706,93579.0,93578.0,0.0001707]
[1741011539419,0.18480706,93579.0,93578.0,0.0001707]
[1741011540554,0.18780706,93579.0,93578.0,0.0001707]
[1741011540985,0.18480706,93579.0,93578.0,0.0001707]
[1741011541323,0.18780706,93579.0,93578.0,0.0001707]
[1741011541730,0.48780706,93579.0,93578.0,0.0001707]
[1741011542426,0.01454085,93578.0,93571.0,7e-07]
[1741011542690,0.160318,93564.0,93563.0,4e-07]
[1741011542920,0.84451978,93564.0,93563.0,4e-07]
[1741011543165,0.86675936,93564.0,93563.0,4e-07]
[1741011543390,0.460336,93553.0,93552.0,0.00201]
[1741011543872,0.48038449,93553.0,93552.0,0.00201]
[1741011544084,0.50262407,93553.0,93552.0,0.00201]
[1741011544508,0.48808322,93553.0,93552.0,0.00201]
[1741011544728,0.34751757,93553.0,93552.0,0.1134477]
[1741011544943,0.33086823,93553.0,93552.0,0.1134477]
[1741011545155,0.49120423,93553.0,93552.0,0.1134477]
[1741011545362,0.49120423,93553.0,93552.0,0.0341073]
[1741011545577,0.49120423,93553.0,93552.0,0.00201]
[1741011545916,0.47115574,93553.0,93552.0,0.00201]
[1741011546591,0.22849232,93553.0,93552.0,0.00201]
[1741011546787,0.23349232,93553.0,93552.0,0.00201]
[1741011547145,0.53349232,93553.0,93552.0,0.00201]
[1741011547388,0.52849232,93553.0,93552.0,0.00201]
[1741011547587,0.53049232,93553.0,93552.0,0.00201]
[1741011548024,0.52849232,93553.0,93552.0,0.00201]
[1741011548425,0.52849232,93553.0,93531.0,0.00241]
[1741011548426,0.0679027,93544.0,93531.0,0.00241]
[1741011548642,0.460383,93526.0,93520.0,0.00201]
[1741011548854,0.782183,93526.0,93525.0,1e-08]
[1741011549244,0.460391,93521.0,93520.0,0.00201]
[1741011549446,0.782191,93521.0,93520.0,0.00201]
[1741011549647,0.79673185,93521.0,93520.0,0.00201]
[1741011549849,0.87195749,93521.0,93520.0,0.00201]
[1741011550098,0.460407,93512.0,93497.0,0.0793404]
[1741011550249,0.87926785,93512.0,93489.0,0.00201]
[1741011550450,0.91779391,93512.0,93489.0,0.00201]
[1741011550714,0.78962108,93512.0,93494.0,0.0320973]
[1741011550893,0.87246108,93512.0,93500.0,0.0793404]
[1741011551119,0.160417,93506.0,93500.0,0.0793404]
[1741011551317,0.460417,93506.0,93503.0,0.0320973]
[1741011551753,0.16771194,93506.0,93504.0,0.0793404]
[1741011552407,0.1876625,93506.0,93505.0,0.08269521]
[1741011552833,0.1876625,93506.0,93505.0,0.00335481]
[1741011553493,0.20220335,93506.0,93505.0,0.00335481]
[1741011553728,0.23407679,93506.0,93505.0,0.00335481]
[1741011554359,0.26059514,93506.0,93505.0,0.00335481]
[1741011554565,0.88239514,93506.0,93505.0,0.00335481]
[1741011554781,0.96875246,93506.0,93505.0,0.00335481]
[1741011555018,0.39769711,93506.0,93505.0,0.11479251]
[1741011555223,0.39769711,93506.0,93505.0,0.27521151]
[1741011555224,0.38091894,93506.0,93505.0,0.27521151]
[1741011555434,0.38091894,93506.0,93505.0,0.23101151]
[1741011555852,0.05911894,93506.0,93505.0,0.23101151]
[1741011556059,0.05911894,93506.0,93505.0,0.07059251]
[1741011556266,0.051824,93506.0,93505.0,0.07059251]
[1741011556476,0.06577447,93506.0,93505.0,0.0320973]
[1741011556665,0.19431803,93506.0,93505.0,0.0320973]
[1741011557210,0.18731803,93506.0,93505.0,0.07059251]
[1741011557361,0.02690103,93506.0,93505.0,0.07159251]
[1741011557567,0.02690103,93506.0,93505.0,0.23201151]
[1741011557769,0.01995056,93506.0,93505.0,0.23201151]
[1741011558026,0.01995056,93509.0,93508.0,0.23100651]
[1741011558206,0.18036256,93509.0,93508.0,0.07059251]
[1741011558643,0.02690685,93509.0,93508.0,0.07059251]
[1741011559072,0.01995056,93509.0,93508.0,0.07059251]
[1741011559202,0.01995056,93509.0,93508.0,0.23100651]
[1741011559651,0.03672459,93509.0,93508.0,0.23100651]
[1741011559866,0.03672459,93509.0,93508.0,0.23000651]
[1741011560727,0.03672459,93509.0,93508.0,0.23100651]
[1741011561252,0.03672459,93509.0,93508.0,0.23000651]
[1741011561718,0.03772459,93509.0,93508.0,0.23100651]
[1741011561956,0.06957589,93509.0,93508.0,0.23100651]
[1741011562599,0.00011914,93512.0,93511.0,0.82114136]
[1741011562848,0.3218,93545.0,93544.0,0.30654451]
[1741011563053,0.06070051,93553.0,93544.0,0.30654451]
[1741011563054,0.06070051,93553.0,93552.0,0.22993051]
[1741011563295,0.06070051,93553.0,93552.0,0.06959251]
[1741011563498,0.06082047,93553.0,93552.0,0.06959251]
[1741011563941,0.22115647,93553.0,93552.0,0.0300973]
[1741011564368,0.06082047,93553.0,93552.0,0.06859251]
[1741011564571,0.06082047,93553.0,93552.0,0.0300973]
[1741011564763,0.06082047,93553.0,93552.0,0.06959251]
[1741011565762,0.06082047,93553.0,93552.0,0.22993051]
[1741011566468,0.06082047,93553.0,93552.0,0.22893051]
[1741011566949,0.06082047,93553.0,93552.0,0.23193051]
[1741011567655,0.06082047,93553.0,93552.0,0.22893051]
[1741011567880,0.06082047,93553.0,93552.0,0.23593051]
[1741011569008,0.22115647,93553.0,93552.0,0.0370973]
[1741011569214,0.22115647,93553.0,93552.0,0.07559251]
[1741011569426,0.06749923,93553.0,93552.0,0.06859251]
[1741011569650,0.06849923,93553.0,93552.0,0.23593051]
[1741011570059,0.06182047,93553.0,93552.0,0.23593051]
[1741011570212,0.06082047,93553.0,93552.0,0.22893051]
[1741011570462,0.06082047,93553.0,93552.0,0.33393051]
[1741011570727,0.06082047,93553.0,93552.0,0.34847136]
[1741011570867,0.06082047,93553.0,93552.0,0.34347136]
[1741011571302,0.06182047,93553.0,93552.0,0.35047136]
[1741011571477,0.06182047,93553.0,93552.0,0.53217136]
[1741011571700,0.06182047,93553.0,93552.0,0.88087136]
[1741011572372,0.01182047,93553.0,93552.0,0.96467136]
[1741011572542,0.0003814,93579.0,93578.0,0.49312736]
[1741011572960,0.0003814,93579.0,93578.0,0.95682736]
[1741011573321,0.0003814,93579.0,93578.0,0.75848651]
[1741011573699,0.0013814,93579.0,93578.0,0.76548651]
[1741011573921,0.0013814,93579.0,93578.0,0.46548651]
[1741011574157,0.0013814,93579.0,93578.0,0.3199913]
[1741011574366,0.0003814,93579.0,93578.0,0.45848651]
[1741011574578,0.0003814,93579.0,93578.0,0.57302736]
[1741011574792,0.0003412,93595.0,93594.0,0.74139936]
[1741011574999,7.992e-05,93598.0,93597.0,0.72685351]
[1741011575222,0.09597439,93620.0,93605.0,0.16659251]
[1741011575440,0.09597439,93620.0,93605.0,0.1893443]
[1741011575654,0.09597439,93620.0,93605.0,0.24138036]
[1741011575871,0.160216,93624.0,93605.0,0.34138036]
[1741011576087,0.160217,93623.0,93605.0,0.34138036]
[1741011576300,0.16023,93615.0,93605.0,0.1883443]
[1741011576516,0.213613,93627.0,93605.0,0.1883443]
[1741011576899,0.213643,93615.0,93605.0,0.1883443]
[1741011577127,0.213624,93623.0,93605.0,0.06559251]
[1741011577336,0.0013414,93606.0,93605.0,0.23283951]
[1741011577490,0.0013414,93606.0,93605.0,0.07259251]
[1741011577704,0.00707423,93606.0,93605.0,0.06559251]
[1741011577908,0.00707423,93606.0,93605.0,0.22583951]
[1741011577909,0.0003414,93606.0,93605.0,0.22583951]
[1741011578168,0.0003414,93606.0,93605.0,0.23183951]
[1741011578169,0.0013414,93606.0,93605.0,0.23183951]
[1741011578512,0.00807423,93606.0,93605.0,0.07159251]
[1741011578913,0.0013414,93606.0,93605.0,0.0340973]
[1741011579304,0.16832023,93606.0,93605.0,0.07159251]
[1741011579507,0.1605874,93606.0,93605.0,0.06559251]
[1741011579635,0.16732023,93606.0,93605.0,0.06559251]
[1741011579838,0.16832023,93606.0,93605.0,0.0350973]
[1741011580091,0.16832023,93606.0,93605.0,0.07259251]
[1741011580392,0.16732023,93606.0,93605.0,0.0280973]
[1741011580823,0.16832023,93606.0,93605.0,0.07259251]
[1741011581674,0.00807423,93606.0,93605.0,0.23283951]
[1741011581883,0.00807423,93606.0,93605.0,0.0350973]
[1741011582090,0.00807423,93606.0,93605.0,0.07259251]
[1741011582299,0.0013414,93606.0,93605.0,0.07259251]
[1741011582682,0.00807423,93606.0,93605.0,0.07259251]
[1741011582889,0.0013414,93606.0,93605.0,0.07259251]
[1741011583108,0.01809922,93606.0,93605.0,0.07259251]
[1741011583247,0.18507805,93606.0,93605.0,0.07259251]
[1741011583471,0.18507805,93606.0,93605.0,0.0350973]
[1741011583683,0.18507805,93606.0,93605.0,0.07259251]
[1741011584965,0.18507805,93606.0,93605.0,0.0350973]
[1741011585097,0.18507805,93606.0,93605.0,0.07259251]
[1741011585299,0.18507805,93606.0,93605.0,0.007]
[1741011585499,0.49012023,93606.0,93605.0,0.007]
[1741011585932,0.49012023,93606.0,93605.0,0.04449521]
[1741011586483,0.48912023,93606.0,93605.0,0.03749521]
[1741011586696,0.48912023,93606.0,93605.0,0.04049521]
[1741011586889,0.48912023,93606.0,93605.0,0.003]
[1741011587231,0.32887423,93606.0,93563.0,0.213758]
[1741011587454,0.32887423,93606.0,93552.0,0.0001707]
[1741011587455,0.160282,93585.0,93584.0,0.0280973]
[1741011587662,0.3,93584.0,93580.0,0.03749521]
[1741011587867,0.160307,93570.0,93569.0,0.06559251]
[1741011588075,0.535544,93570.0,93568.0,0.0280973]
[1741011588289,0.160309,93569.0,93568.0,0.0280973]
[1741011588523,0.160309,93569.0,93568.0,0.06559251]
[1741011588724,0.16705008,93569.0,93568.0,0.0280973]
[1741011588938,0.160326,93559.0,93558.0,0.0280973]
[1741011589146,0.3218,93559.0,93552.0,0.0001707]
[1741011589372,0.160336,93553.0,93552.0,0.06576321]
[1741011589574,0.160336,93553.0,93552.0,0.06588312]
[1741011589782,0.16707708,93553.0,93552.0,0.06588312]
[1741011590019,0.48887708,93553.0,93552.0,0.06588312]
[1741011590236,0.50564462,93553.0,93552.0,0.06588312]
[1741011591377,0.50564462,93553.0,93552.0,0.02838791]
[1741011591855,0.5255619,93553.0,93552.0,0.02838791]
[1741011592060,0.5255619,93553.0,93552.0,0.06588312]
[1741011592482,0.8255619,93553.0,93552.0,0.06588312]
[1741011592919,0.80564462,93553.0,93552.0,0.06588312]
[1741011594154,0.80564462,93553.0,93552.0,0.02838791]
[1741011594155,0.80664462,93553.0,93552.0,0.02838791]
[1741011595020,0.80664462,93553.0,93552.0,0.06588312]
[1741011595228,0.82656113,93553.0,93552.0,0.06588312]
[1741011595765,0.52656113,93553.0,93552.0,0.06588312]
[1741011595967,0.50979359,93553.0,93552.0,0.06588312]
[1741011596436,0.34945759,93553.0,93552.0,0.06588312]
[1741011596644,0.02665759,93553.0,93552.0,0.06588312]
[1741011597112,0.18699359,93553.0,93552.0,0.06588312]
[1741011597341,0.18025251,93553.0,93552.0,0.06588312]
[1741011597566,0.18696525,93553.0,93552.0,0.06588312]
[1741011598105,0.18696525,93553.0,93552.0,0.06988312]
[1741011598541,0.18696525,93553.0,93552.0,0.06588312]
[1741011599333,0.18696525,93553.0,93552.0,0.03778582]
[1741011599334,0.50373241,93553.0,93552.0,0.03778582]
[1741011599513,0.50373241,93553.0,93552.0,0.00029061]
[1741011599711,0.50373241,93553.0,93552.0,0.02838791]
[1741011600128,0.50373241,93553.0,93552.0,0.06788312]
[1741011600816,0.50373241,93553.0,93552.0,0.06588312]
[1741011601032,0.20673241,93553.0,93552.0,0.06588312]
[1741011601679,0.20373241,93553.0,93552.0,0.06588312]
[1741011601929,0.20673241,93553.0,93552.0,0.06588312]
[1741011602169,0.20673241,93553.0,93552.0,0.00029061]
[1741011602386,0.20673241,93553.0,93552.0,0.02838791]
[1741011603035,0.04639641,93553.0,93552.0,0.06588312]
[1741011603304,0.20673241,93553.0,93552.0,0.06588312]
[1741011603477,0.04339641,93553.0,93552.0,0.22622112]
[1741011603688,0.07521378,93553.0,93552.0,0.22622112]
[1741011603965,0.06850104,93553.0,93552.0,0.22622112]
[1741011604182,0.06850104,93553.0,93552.0,0.06588312]
[1741011604183,0.22883704,93553.0,93552.0,0.06588312]
[1741011604608,0.23552597,93553.0,93552.0,0.06588312]
[1741011604819,0.2037086,93553.0,93552.0,0.02838791]
[1741011605050,0.2037086,93553.0,93552.0,0.06588312]
[1741011605276,0.2047086,93553.0,93552.0,0.06788312]
[1741011605506,0.0443726,93553.0,93552.0,0.22822112]
[1741011605731,0.0443726,93553.0,93552.0,0.06788312]
[1741011605732,0.2047086,93553.0,93552.0,0.06788312]
[1741011605960,0.18794144,93553.0,93552.0,0.06788312]
[1741011606518,0.18794144,93553.0,93552.0,0.03038791]
[1741011606763,0.18794144,93553.0,93552.0,0.06788312]
[1741011607202,0.02760544,93553.0,93552.0,0.06788312]
[1741011607430,0.02760544,93553.0,93552.0,0.22822112]
[1741011607656,0.02760544,93553.0,93552.0,0.06788312]
[1741011607905,0.02760544,93553.0,93552.0,0.22822112]
[1741011608135,0.02660544,93553.0,93552.0,0.22622112]
[1741011608651,0.01991651,93553.0,93552.0,0.22722112]
[1741011608887,0.16703201,93553.0,93552.0,0.02938791]
[1741011609126,0.16703201,93553.0,93552.0,0.06588312]
[1741011609356,0.48379912,93553.0,93552.0,0.06888312]
[1741011610025,0.46703201,93553.0,93552.0,0.06588312]
[1741011611086,0.78883201,93553.0,93552.0,0.06588312]
[1741011611496,0.78883201,93553.0,93552.0,0.06688312]
[1741011611689,0.78883201,93553.0,93552.0,0.00129061]
[1741011611888,0.78883201,93553.0,93552.0,0.00029061]
[1741011612553,0.78883201,93553.0,93552.0,0.02838791]
[1741011613169,0.79483201,93553.0,93552.0,0.02838791]
[1741011613580,0.79483201,93553.0,93552.0,0.06588312]
[1741011613792,0.49483201,93553.0,93552.0,0.06588312]
[1741011613998,0.49483201,93553.0,93552.0,0.22622112]
[1741011613999,0.00849701,93553.0,93552.0,0.22622112]
[1741011614208,0.1728407,93553.0,93552.0,0.06588312]
[1741011614426,0.006,93553.0,93552.0,0.06588312]
[1741011614634,0.18360205,93553.0,93552.0,0.06588312]
[1741011614847,0.02926605,93553.0,93552.0,0.22622112]
[1741011615258,0.006,93553.0,93552.0,0.06588312]
[1741011615469,0.160328,93558.0,93557.0,0.06559251]
[1741011616218,0.460328,93558.0,93557.0,0.0280973]
[1741011616450,0.460333,93555.0,93554.0,0.06559251]
[1741011616716,0.460333,93555.0,93554.0,0.06459251]
[1741011617194,0.3,93555.0,93552.0,0.00029061]
[1741011617398,0.460336,93553.0,93552.0,0.02838791]
[1741011617603,0.460336,93553.0,93552.0,0.06488312]
[1741011617807,0.460336,93553.0,93552.0,0.00029061]
[1741011618012,0.782136,93553.0,93552.0,0.00029061]
[1741011618439,0.79890644,93553.0,93552.0,0.00029061]
[1741011618873,0.79890644,93553.0,93552.0,0.03678582]
[1741011619050,0.79890644,93553.0,93552.0,0.06688312]
[1741011619306,0.79890644,93553.0,93552.0,0.03038791]
[1741011619487,0.79890644,93553.0,93552.0,0.00029061]
[1741011619924,0.79890644,93553.0,93552.0,0.02838791]
[1741011620509,0.79890644,93553.0,93552.0,0.06488312]
[1741011621367,0.33857044,93553.0,93552.0,0.06488312]
[1741011621596,0.01677044,93553.0,93552.0,0.06488312]
[1741011622016,0.02296919,93553.0,93552.0,0.06488312]
[1741011622191,0.01677044,93553.0,93552.0,0.06488312]
[1741011622426,0.01677044,93553.0,93552.0,0.22522112]
[1741011622656,0.01677044,93553.0,93552.0,0.22722112]
[1741011623087,0.01677044,93553.0,93552.0,0.06688312]
[1741011623661,0.02296919,93553.0,93552.0,0.06688312]
[1741011623774,0.02296919,93553.0,93552.0,0.22722112]
[1741011624169,0.01677044,93553.0,93552.0,0.06688312]
[1741011624394,0.02297832,93553.0,93552.0,0.02838791]
[1741011624601,0.18331432,93553.0,93552.0,0.06488312]
[1741011624824,0.18331432,93553.0,93552.0,0.03238791]
[1741011625031,0.18331432,93553.0,93552.0,0.06888312]
[1741011625235,0.18331432,93553.0,93552.0,0.06488312]
[1741011625437,0.18331432,93553.0,93552.0,0.02838791]
[1741011625438,0.46654388,93553.0,93552.0,0.02838791]
[1741011625640,0.46654388,93553.0,93552.0,0.06688312]
[1741011625869,0.78834388,93553.0,93552.0,0.00229061]
[1741011626077,0.87154388,93553.0,93552.0,0.03678582]
[1741011626296,0.87154388,93553.0,93552.0,0.00029061]
[1741011626494,0.87154388,93553.0,93552.0,0.02838791]
[1741011626698,0.87154388,93553.0,93552.0,0.00029061]
[1741011626936,0.87154388,93553.0,93552.0,0.03678582]
[1741011627110,0.78834388,93553.0,93552.0,0.06488312]
[1741011628822,0.80511374,93553.0,93552.0,0.06488312]
[1741011630828,0.80511374,93553.0,93552.0,0.00029061]
[1741011631727,0.46035,93545.0,93544.0,0.01939182]
[1741011631937,0.46045665,93545.0,93544.0,0.01939182]
[1741011632162,0.46819399,93545.0,93544.0,0.01939182]
[1741011633701,0.3,93539.0,93535.0,0.01939182]
[1741011633884,0.460366,93536.0,93535.0,0.01939182]
[1741011634326,0.46809665,93536.0,93535.0,0.01939182]
[1741011634546,0.48486973,93536.0,93535.0,0.01939182]
[1741011635210,0.48486973,93536.0,93510.0,0.00201]
[1741011635211,0.48486973,93536.0,93512.0,0.01939182]
[1741011635212,0.160405,93513.0,93512.0,0.01939182]
[1741011635420,0.160408,93511.0,93510.0,0.00201]
[1741011635570,0.460408,93511.0,93510.0,0.00201]
[1741011635797,0.47718514,93511.0,93510.0,0.00201]
[1741011636024,0.48491074,93511.0,93510.0,0.00201]
[1741011636244,0.3,93510.0,93505.0,0.0001708]
[1741011636380,0.460417,93506.0,93505.0,0.0001708]
[1741011636592,0.460417,93506.0,93505.0,0.00029076]
[1741011637004,0.78994223,93506.0,93505.0,0.00029076]
[1741011637214,0.80448308,93506.0,93505.0,0.00029076]
[1741011638380,0.80448308,93506.0,93505.0,7.6e-07]
[1741011638596,0.80548308,93506.0,93505.0,7.6e-07]
[1741011639026,0.78994223,93506.0,93505.0,0.01939258]
[1741011639227,0.78994223,93506.0,93505.0,0.05588779]
[1741011639461,0.79394223,93506.0,93505.0,0.05588779]
[1741011640180,0.87698223,93506.0,93505.0,0.01939258]
[1741011640397,0.87698223,93506.0,93505.0,7.6e-07]
[1741011640605,0.87698223,93506.0,93505.0,0.05588779]
[1741011640759,0.87298223,93506.0,93505.0,7.6e-07]
[1741011640969,0.88752308,93506.0,93505.0,7.6e-07]
[1741011641422,0.78994223,93506.0,93505.0,7.6e-07]
[1741011641648,0.87798223,93506.0,93505.0,7.6e-07]
[1741011641862,0.87794223,93506.0,93505.0,7.6e-07]
[1741011642051,0.78994223,93506.0,93505.0,7.6e-07]
[1741011642284,0.89372188,93506.0,93505.0,7.6e-07]
[1741011643197,0.90826273,93506.0,93505.0,7.6e-07]
[1741011643935,0.90426273,93506.0,93505.0,7.6e-07]
[1741011644382,0.90926273,93506.0,93505.0,7.6e-07]
[1741011644828,0.88972188,93506.0,93505.0,7.6e-07]
[1741011645049,0.81172188,93506.0,93505.0,7.6e-07]
[1741011645301,0.89472188,93506.0,93505.0,7.6e-07]
[1741011645524,0.81172188,93506.0,93505.0,0.01939258]
[1741011645746,0.80672188,93506.0,93505.0,0.01939258]
[1741011646176,0.80672188,93506.0,93505.0,0.05588779]
[1741011646402,0.02450488,93506.0,93505.0,0.21630679]
[1741011646665,0.00772523,93506.0,93505.0,0.29490679]
[1741011646886,0.25636539,93521.0,93520.0,0.05588703]
[1741011647338,0.26370636,93521.0,93520.0,0.05588703]
[1741011647805,0.56370636,93521.0,93520.0,0.01939182]
[1741011648036,0.56370636,93521.0,93520.0,0.01439182]
[1741011648259,0.460398,93517.0,93516.0,0.01439182]
[1741011648486,0.460398,93517.0,93516.0,0.05088703]
[1741011648948,0.46773897,93517.0,93516.0,0.05088703]
[1741011649409,0.46773897,93517.0,93505.0,0.00017116]
[1741011649410,0.3,93516.0,93505.0,0.00017116]
[1741011649641,0.460417,93506.0,93505.0,0.00017116]
[1741011649859,0.460417,93506.0,93505.0,0.05105819]
[1741011650072,0.55035797,93506.0,93505.0,0.05105819]
[1741011650283,0.55035797,93506.0,93505.0,0.01456298]
[1741011650717,0.55035797,93506.0,93505.0,0.05105819]
[1741011650926,0.56713606,93506.0,93505.0,0.05105819]
[1741011651136,0.56713606,93506.0,93505.0,0.01456298]
[1741011651342,0.56713606,93506.0,93505.0,0.00017116]
[1741011652244,0.88893606,93506.0,93505.0,0.00117116]
[1741011652447,0.91025584,93506.0,93505.0,0.00117116]
[1741011653392,0.92479669,93506.0,93505.0,1.6e-07]
[1741011653566,1.00499669,93506.0,93505.0,1.6e-07]
[1741011653982,0.84457969,93506.0,93491.0,0.01496232]
[1741011654187,0.460427,93500.0,93499.0,0.00240912]
[1741011654572,0.46776797,93500.0,93499.0,0.00240912]
[1741011655180,0.46776797,93500.0,93499.0,1.2e-07]
[1741011655584,0.460444,93490.0,93489.0,6.2e-07]
[1741011655799,0.79678485,93490.0,93489.0,6.2e-07]
[1741011656194,0.79678485,93490.0,93458.0,0.0001706]
[1741011656195,0.460463,93479.0,93478.0,1.2e-07]
[1741011656397,0.55732385,93479.0,93478.0,1.2e-07]
[1741011656597,0.542783,93479.0,93478.0,0.01439194]
[1741011657039,0.55011389,93479.0,93478.0,0.01439194]
[1741011657241,0.55011389,93479.0,93478.0,1.2e-07]
[1741011657776,0.55011389,93479.0,93478.0,0.01439194]
[1741011658101,0.46779389,93479.0,93478.0,0.01439194]
[1741011658489,0.46779389,93479.0,93478.0,0.05088715]
[1741011658895,0.30733089,93479.0,93478.0,0.05088715]
[1741011659122,0.48457593,93479.0,93478.0,0.05088715]
[1741011659961,0.18457593,93479.0,93478.0,0.05088715]
[1741011660622,0.02411293,93479.0,93478.0,0.05088715]
[1741011661314,0.01678204,93479.0,93478.0,0.05088715]
[1741011661514,0.01778204,93479.0,93478.0,0.21135215]
[1741011661726,0.01778204,93479.0,93478.0,0.21152265]
[1741011661919,0.17724504,93479.0,93478.0,0.05105765]
[1741011662124,0.18456849,93479.0,93478.0,0.05105765]
[1741011662331,0.18556849,93479.0,93478.0,0.05105765]
[1741011662750,0.02510549,93479.0,93478.0,0.05105765]
[1741011663780,0.18556849,93479.0,93478.0,0.05105765]
[1741011664195,0.18556849,93479.0,93478.0,0.01456244]
[1741011664616,0.48456849,93479.0,93478.0,0.05105765]
[1741011665045,0.48556849,93479.0,93478.0,0.05105765]
[1741011665461,0.48456849,93479.0,93478.0,0.05105765]
[1741011665880,0.30732345,93479.0,93478.0,0.05105765]
[1741011666089,0.00732345,93479.0,93478.0,0.05105765]
[1741011666303,0.00732345,93479.0,93478.0,0.21152265]
[1741011666507,0.3218,93493.0,93492.0,0.05088703]
[1741011666716,0.213908,93498.0,93497.0,0.05088703]
[1741011667043,0.513908,93498.0,93497.0,0.05088703]
[1741011667285,0.00039927,93500.0,93499.0,0.05088703]
[1741011667505,0.16082627,93500.0,93499.0,0.05088703]
[1741011668133,0.16082627,93500.0,93499.0,0.01439182]
[1741011668134,0.46082627,93500.0,93499.0,0.01439182]
[1741011668370,0.46082627,93500.0,93499.0,0.05088703]
[1741011668569,0.46182627,93500.0,93499.0,0.05088703]
[1741011668989,0.46082627,93500.0,93499.0,0.05088703]
[1741011669203,0.160446,93489.0,93488.0,0.05088703]
[1741011669416,0.460446,93489.0,93488.0,0.05088703]
[1741011670541,0.47722649,93489.0,93488.0,0.05088703]
[1741011670980,0.01678049,93489.0,93488.0,0.05088703]
[1741011671403,0.17722649,93489.0,93488.0,0.05088703]
[1741011671605,0.01678049,93489.0,93488.0,0.05088703]
[1741011671827,0.01678049,93489.0,93488.0,0.28723503]
[1741011672259,0.01678049,93489.0,93488.0,0.33253503]
[1741011672491,0.00039927,93500.0,93499.0,0.21031603]
[1741011672702,0.00039927,93500.0,93499.0,0.31181296]
[1741011672913,0.00039927,93500.0,93499.0,0.31031603]
[1741011673535,0.00039927,93500.0,93497.0,0.27422403]
[1741011673752,0.00600836,93499.0,93498.0,0.10144383]
[1741011673984,0.00600836,93499.0,93498.0,0.30737483]
[1741011674209,0.00600836,93499.0,93498.0,0.304931]
[1741011674418,0.00600836,93499.0,93498.0,0.384731]
[1741011674634,0.00600836,93499.0,93498.0,0.1253]
[1741011674847,0.01333766,93499.0,93498.0,0.0798]
[1741011675058,0.17476666,93499.0,93498.0,0.0798]
[1741011675269,0.01433766,93499.0,93485.0,0.0452]
[1741011675681,0.000341,93489.0,93485.0,0.0452]
[1741011675944,0.000341,93489.0,93484.0,0.01998567]
[1741011676147,0.000341,93489.0,93478.0,0.00017062]
[1741011676148,0.160463,93479.0,93478.0,0.00017062]
[1741011676574,0.1677923,93479.0,93478.0,0.00017062]
[1741011678695,0.1687923,93479.0,93478.0,0.00017062]
[1741011679107,0.0083293,93479.0,93478.0,0.00017062]
[1741011679647,0.0083293,93479.0,93461.0,0.00149752]
[1741011679876,0.0083293,93479.0,93472.0,0.14827868]
[1741011680058,0.0083293,93479.0,93469.0,0.15246604]
[1741011680059,0.00600836,93478.0,93469.0,0.15246604]
[1741011680262,0.00600836,93478.0,93461.0,0.00149752]
[1741011680460,0.0073293,93477.0,93461.0,0.00149752]
[1741011680662,0.0073293,93477.0,93469.0,0.213974]
[1741011680946,0.00600836,93478.0,93473.0,0.160473]
[1741011681140,0.00600836,93478.0,93468.0,0.00201]
[1741011681427,0.00710739,93477.0,93468.0,0.00201]
[1741011681869,0.213958,93476.0,93468.0,0.00201]
[1741011682076,0.160472,93475.0,93468.0,0.00201]
[1741011682294,0.00711326,93475.0,93468.0,0.00201]
[1741011682504,0.00711326,93475.0,93468.0,0.215984]
[1741011682724,0.00600836,93478.0,93471.0,0.160477]
[1741011682924,0.00600836,93478.0,93471.0,0.160476]
[1741011683111,0.00600836,93478.0,93468.0,0.00201]
[1741011683343,0.00711326,93477.0,93468.0,0.00201]
[1741011683593,0.160481,93469.0,93468.0,0.00201]
[1741011683803,0.213972,93471.0,93468.0,0.00201]
[1741011684020,0.160481,93469.0,93468.0,0.00201]
[1741011684579,0.213957,93477.0,93468.0,0.00201]
[1741011684580,0.001,93477.0,93468.0,0.00201]
[1741011684780,0.00711326,93469.0,93468.0,0.00201]
[1741011684994,0.00139903,93477.0,93468.0,0.00201]
[1741011685338,0.160481,93469.0,93468.0,0.00201]
[1741011685541,0.161481,93469.0,93468.0,0.00201]
[1741011686376,0.16859426,93469.0,93468.0,0.00201]
[1741011686996,0.16759426,93469.0,93468.0,0.00201]
[1741011687656,0.26759426,93469.0,93468.0,0.00201]
[1741011687886,0.26759426,93469.0,93468.0,0.0021805]
[1741011688836,0.56759426,93469.0,93468.0,0.0021805]
[1741011689837,0.68758127,93469.0,93468.0,0.0021805]
[1741011690056,0.38758127,93469.0,93468.0,0.0021805]
[1741011692748,0.22710027,93469.0,93468.0,0.0021805]
[1741011693085,0.38758127,93469.0,93468.0,0.0021805]
[1741011695260,0.48758127,93469.0,93468.0,0.0021805]
[1741011696351,0.160498,93459.0,93458.0,0.0001706]
[1741011696736,0.16760193,93459.0,93458.0,0.0001706]
[1741011697763,0.16860193,93459.0,93458.0,0.0001706]
[1741011699989,0.00810393,93459.0,93458.0,0.0001706]
[1741011700447,0.16860193,93459.0,93458.0,0.0001706]
[1741011700662,0.00810393,93459.0,93458.0,0.0001706]
[1741011701621,0.16860193,93459.0,93458.0,0.0001706]
[1741011705261,0.00810393,93459.0,93458.0,0.0001706]
[1741011705473,0.16860193,93459.0,93458.0,0.0001706]
[1741011705687,0.00810393,93459.0,93458.0,0.0001706]
[1741011706092,0.001,93459.0,93458.0,0.1606696]
[1741011706313,0.00810393,93459.0,93458.0,0.0001706]
[1741011706517,0.00810275,93459.0,93458.0,0.0001706]
[1741011706740,0.001,93459.0,93458.0,0.0001706]
[1741011706973,0.16860075,93459.0,93458.0,0.0001706]
[1741011707145,0.161498,93459.0,93458.0,0.0001706]
[1741011707355,0.16860075,93459.0,93458.0,0.0001706]
[1741011712408,0.16415626,93458.0,93457.0,0.00201]
[1741011712948,0.17125901,93458.0,93457.0,0.00201]
[1741011713547,0.17225901,93458.0,93457.0,0.00201]
[1741011720364,0.17125901,93458.0,93457.0,0.00201]
[1741011720562,0.17125901,93458.0,93457.0,0.00401]
[1741011720770,0.17225901,93458.0,93457.0,0.00401]
[1741011720966,0.17225901,93458.0,93457.0,0.00201]
[1741011721390,0.17325901,93458.0,93457.0,0.00201]